fUSD/lending_fUSD_20251024
["ID","MTS","AMOUNT","RATE_DAILY","PERIOD"]
[392232871,1761273044173,-500.0,0.0004164,30]
[392232872,1761273044182,-500.0,0.0004164,30]
[392232873,1761273044191,-500.0,0.0004164,30]
[392232874,1761273044200,-500.0,0.0004164,30]
[392232875,1761273044209,-500.0,0.0004164,30]
[392232876,1761273044219,-500.0,0.00041641,30]
[392232877,1761273044228,-500.0,0.00041641,30]
[392232878,1761273044237,-610.78500302,0.00041641,30]
[392232879,1761273044246,-500.0,0.00041641,30]
[392232880,1761273044255,-500.0,0.00041641,30]
[392232881,1761273044264,-599.02,0.00041641,30]
[392232882,1761273044273,-500.0,0.00041641,30]
[392232883,1761273044282,-500.0,0.00041641,30]
[392232884,1761273044291,-500.0,0.00041641,30]
[392232885,1761273044299,-500.0,0.00041641,30]
[392232886,1761273044308,-488.07931755,0.00041641,30]
[392232887,1761273044317,-500.0,0.00041641,30]
[392232888,1761273044326,-500.0,0.00041641,30]
[392232889,1761273044335,-952.78,0.00041641,30]
[392232890,1761273044343,-153.44457522,0.00041641,30]
[392232891,1761273044352,-500.0,0.00041641,30]
[392232892,1761273044361,-500.0,0.00041641,30]
[392232893,1761273044370,-500.0,0.00041641,30]
[392232894,1761273044379,-1041.2,0.00041641,30]
[392232895,1761273044388,-500.0,0.00041641,30]
[392232896,1761273044396,-500.0,0.00041641,30]
[392232897,1761273044405,-500.0,0.00041641,30]
[392232898,1761273044414,-500.0,0.00041641,30]
[392232899,1761273044423,-500.0,0.00041641,30]
[392232900,1761273044433,-500.0,0.00041641,30]
[392232901,1761273044442,-500.0,0.00041641,30]
[392232902,1761273044451,-500.0,0.00041641,30]
[392232903,1761273044459,-500.0,0.00041641,30]
[392232904,1761273044468,-500.0,0.00041641,30]
[392232905,1761273044477,-500.0,0.00041641,30]
[392232906,1761273044486,-500.0,0.00041641,30]
[392232907,1761273044495,-500.0,0.00041641,30]
[392232908,1761273044503,-500.0,0.00041641,30]
[392232909,1761273044513,-835.28,0.00041641,30]
[392232910,1761273044523,-506.23087792,0.00041641,30]
[392232911,1761273044533,-443.80513763,0.00041641,30]
[392232912,1761273044542,-500.0,0.00041641,30]
[392232913,1761273044552,-500.0,0.00041641,30]
[392232914,1761273044561,-500.0,0.00041641,30]
[392232915,1761273044570,-500.0,0.00041641,30]
[392232916,1761273044579,-500.0,0.00041641,30]
[392232917,1761273044588,-1064.86,0.00041641,30]
[392232918,1761273044598,-500.0,0.00041641,30]
[392232919,1761273044607,-946.01,0.00041641,30]
[392232920,1761273044615,-500.0,0.00041641,30]
[392232921,1761273044624,-500.0,0.00041641,30]
[392232922,1761273044634,-500.0,0.00041641,30]
[392232923,1761273044642,-500.0,0.00041641,30]
[392232924,1761273044651,-500.0,0.00041641,30]
[392232925,1761273044661,-500.0,0.00041641,30]
[392232926,1761273044671,-500.0,0.00041641,30]
[392232927,1761273044681,-500.0,0.00041641,30]
[392232928,1761273044692,-500.0,0.00041641,30]
[392232929,1761273044701,-500.0,0.00041641,30]
[392232930,1761273044711,-500.0,0.00041641,30]
[392232931,1761273044721,-500.0,0.00041641,30]
[392232932,1761273044730,-554.54,0.00041641,30]
[392232933,1761273044740,-500.0,0.00041641,30]
[392232934,1761273044751,-500.0,0.00041641,30]
[392232935,1761273044761,-500.0,0.00041641,30]
[392232936,1761273044770,-500.0,0.00041641,30]
[392232937,1761273044780,-500.0,0.00041641,30]
[392232938,1761273044789,-500.0,0.00041641,30]
[392232939,1761273044798,-500.0,0.00041641,30]
[392232940,1761273044807,-500.0,0.00041641,30]
[392232941,1761273044817,-500.0,0.00041641,30]
[392232942,1761273044826,-500.0,0.00041641,30]
[392232943,1761273044837,-500.0,0.00041641,30]
[392232944,1761273044846,-500.0,0.00041641,30]
[392232945,1761273044856,-539.42,0.00041641,30]
[392232946,1761273044867,-500.0,0.00041641,30]
[392232947,1761273044877,-500.0,0.00041641,30]
[392232948,1761273044887,-563.15264714,0.00041641,30]
[392232949,1761273044895,-500.0,0.00041641,30]
[392232950,1761273044904,-500.0,0.00041641,30]
[392232951,1761273044914,-500.0,0.00041641,30]
[392232952,1761273044922,-920.86,0.00041641,30]
[392232953,1761273044932,-500.0,0.00041641,30]
[392232954,1761273044941,-956.98,0.00041641,30]
[392232955,1761273044952,-500.0,0.00041641,6]
[392232956,1761273044961,-500.0,0.00041641,30]
[392232957,1761273044971,-500.0,0.00041641,30]
[392232958,1761273044979,-500.0,0.00041641,30]
[392232959,1761273044989,-500.0,0.00041641,30]
[392232960,1761273044998,-500.0,0.00041641,30]
[392232961,1761273045008,-500.0,0.00041641,30]
[392232962,1761273045019,-500.0,0.00041641,30]
[392232963,1761273045030,-500.0,0.00041641,30]
[392232964,1761273045039,-500.0,0.00041641,30]
[392232965,1761273045048,-500.0,0.00041641,30]
[392232966,1761273045058,-500.0,0.00041641,30]
[392232967,1761273045069,-500.0,0.00041641,30]
[392232968,1761273045078,-500.0,0.00041641,30]
[392232969,1761273045088,-500.0,0.00041641,30]
[392232970,1761273045099,-500.0,0.00041641,30]
[392232971,1761273045109,-500.0,0.00041641,30]
[392232972,1761273045119,-500.0,0.00041641,30]
[392232973,1761273045129,-665.6,0.00041641,30]
[392232974,1761273045138,-500.0,0.00041641,30]
[392232975,1761273045152,-500.0,0.00041641,30]
[392232976,1761273045163,-500.0,0.00041641,30]
[392232977,1761273045173,-547.16,0.00041641,30]
[392232978,1761273045183,-690.94,0.00041641,30]
[392232979,1761273045192,-154.309446,0.00041641,30]
[392232980,1761273045202,-158.37162,0.00041641,30]
[392232981,1761273045213,-500.0,0.00041641,30]
[392232982,1761273045222,-157.837816,0.00041641,30]
[392232983,1761273045231,-156.40798,0.00041641,30]
[392232984,1761273045241,-500.0,0.00041641,30]
[392232985,1761273045253,-500.0,0.00041641,30]
[392232986,1761273045263,-500.0,0.00041641,30]
[392232987,1761273045273,-441.016501,0.00041641,30]
[392232988,1761273045282,-597.74,0.00041641,30]
[392232989,1761273045292,-1097.65,0.00041641,30]
[392232990,1761273045302,-500.0,0.00041641,30]
[392232991,1761273045312,-500.0,0.00041641,30]
[392232992,1761273045321,-299.81298858,0.00041641,30]
[392232993,1761273045331,-749.74,0.00041641,30]
[392232994,1761273045341,-500.0,0.00041641,30]
[392232995,1761273045351,-500.0,0.00041641,30]
[392232996,1761273045360,-500.0,0.00041641,30]
[392232997,1761273045370,-500.0,0.00041641,30]
[392232998,1761273045379,-562.18783401,0.00041641,30]
[392232999,1761273045388,-745.8,0.00041641,30]
[392233000,1761273045398,-500.0,0.00041641,30]
[392233001,1761273045408,-500.0,0.00041641,30]
[392233002,1761273045418,-500.0,0.00041641,30]
[392233003,1761273045427,-800.1,0.00041641,30]
[392233004,1761273045437,-500.0,0.00041641,30]
[392233005,1761273045446,-500.0,0.00041641,30]
[392233006,1761273045456,-500.0,0.00041641,30]
[392233007,1761273045465,-542.31,0.00041641,30]
[392233008,1761273045475,-952.27,0.00041641,30]
[392233009,1761273045484,-500.0,0.00041641,30]
[392233010,1761273045494,-500.0,0.00041641,30]
[392233011,1761273045508,-500.0,0.00041641,30]
[392233012,1761273045517,-1120.61,0.00041641,30]
[392233013,1761273045528,-1011.95,0.00041641,30]
[392233014,1761273045541,-950.67,0.00041641,30]
[392233015,1761273045550,-732.48,0.00041641,30]
[392233016,1761273045561,-852.48,0.00041641,30]
[392233017,1761273045571,-500.0,0.00041641,30]
[392233018,1761273045580,-500.0,0.00041641,30]
[392233019,1761273045591,-500.0,0.00041641,30]
[392233020,1761273045601,-500.0,0.00041641,30]
[392233021,1761273045610,-500.0,0.00041641,30]
[392233022,1761273045621,-500.0,0.00041641,30]
[392233023,1761273045630,-500.0,0.00041641,30]
[392233024,1761273045640,-1076.07,0.00041641,30]
[392233025,1761273045650,-500.0,0.00041641,30]
[392233026,1761273045660,-500.0,0.00041641,30]
[392233027,1761273045669,-500.0,0.00041641,30]
[392233028,1761273045679,-912.49,0.00041641,30]
[392233029,1761273045690,-500.0,0.00041641,30]
[392233030,1761273045705,-500.0,0.00041641,30]
[392233031,1761273045716,-500.0,0.00041641,30]
[392233032,1761273045727,-1012.44,0.00041641,30]
[392233033,1761273045739,-500.0,0.00041641,30]
[392233034,1761273045750,-500.0,0.00041641,30]
[392233035,1761273045760,-774.47,0.00041641,30]
[392233036,1761273045771,-500.0,0.00041641,30]
[392233037,1761273045783,-500.0,0.00041641,30]
[392233038,1761273045793,-534.72,0.00041641,30]
[392233039,1761273045803,-500.0,0.00041641,30]
[392233043,1761273046144,-500.0,0.00041641,30]
[392233044,1761273046155,-500.0,0.00041641,30]
[392233045,1761273046164,-500.0,0.00041641,30]
[392233046,1761273046177,-1000.0,0.00041641,30]
[392233047,1761273046187,-500.0,0.00041641,30]
[392233048,1761273046196,-500.0,0.00041641,30]
[392233049,1761273046205,-500.0,0.00041641,30]
[392233050,1761273046214,-718.2,0.00041641,30]
[392233051,1761273046224,-500.0,0.00041641,30]
[392233052,1761273046233,-500.0,0.00041641,30]
[392233053,1761273046243,-500.0,0.00041641,30]
[392233054,1761273046252,-500.0,0.00041641,30]
[392233055,1761273046261,-500.0,0.00041641,30]
[392233056,1761273046271,-500.0,0.00041641,30]
[392233057,1761273046280,-888.95,0.00041641,30]
[392233058,1761273046289,-971.42,0.00041641,30]
[392233060,1761273046298,-500.0,0.00041641,30]
[392233061,1761273046307,-500.0,0.00041641,30]
[392233062,1761273046316,-619.84,0.00041641,30]
[392233063,1761273046325,-500.0,0.00041641,30]
[392233064,1761273046339,-500.0,0.00041641,30]
[392233065,1761273046349,-500.0,0.00041641,30]
[392233066,1761273046358,-668.19,0.00041641,30]
[392233067,1761273046368,-561.93,0.00041641,30]
[392233068,1761273046377,-1273.82,0.00041641,30]
[392233069,1761273046386,-500.0,0.00041641,30]
[392233070,1761273046395,-500.0,0.00041641,30]
[392233071,1761273046405,-500.0,0.00041641,30]
[392233072,1761273046414,-500.0,0.00041641,30]
[392233073,1761273046423,-500.0,0.00041641,30]
[392233074,1761273046432,-500.0,0.00041641,30]
[392233075,1761273046442,-500.0,0.00041641,30]
[392233076,1761273046454,-744.06,0.00041641,30]
[392233077,1761273046463,-500.0,0.00041641,30]
[392233078,1761273046472,-641.38,0.00041641,30]
[392233079,1761273046482,-500.0,0.00041641,30]
[392233080,1761273046491,-500.0,0.00041641,30]
[392233081,1761273046500,-898.3,0.00041641,30]
[392233082,1761273046509,-500.0,0.00041641,30]
[392233083,1761273046518,-500.0,0.00041641,30]
[392233084,1761273046527,-500.0,0.00041641,30]
[392233085,1761273046536,-500.0,0.00041641,30]
[392233086,1761273046546,-500.0,0.00041641,30]
[392233087,1761273046555,-500.0,0.00041641,30]
[392233088,1761273046564,-500.0,0.00041641,30]
[392233089,1761273046573,-1110.06,0.00041641,30]
[392233090,1761273046583,-700.52,0.00041641,30]
[392233091,1761273046592,-428.65429764,0.00041641,30]
[392233092,1761273046602,-500.0,0.00041641,30]
[392233093,1761273046611,-1030.46,0.00041641,30]
[392233094,1761273046620,-524.38,0.00041641,30]
[392233095,1761273046629,-732.92,0.00041641,30]
[392233096,1761273046638,-822.22,0.00041641,30]
[392233097,1761273046648,-500.0,0.00041641,30]
[392233098,1761273046657,-500.0,0.00041641,30]
[392233099,1761273046666,-500.0,0.00041641,30]
[392233100,1761273046675,-541.92,0.00041641,30]
[392233101,1761273046684,-1253.74,0.00041641,30]
[392233102,1761273046693,-500.573073,0.00041641,30]
[392233103,1761273046703,-1458.25,0.00041641,30]
[392233104,1761273046712,-753.46,0.00041641,30]
[392233105,1761273046722,-500.0,0.00041641,30]
[392233106,1761273046731,-1146.92,0.00041641,30]
[392233107,1761273046741,-500.0,0.00041641,30]
[392233108,1761273046751,-177.27699053,0.00041641,30]
[392233109,1761273046762,-575.32,0.00041641,30]
[392233110,1761273046772,-501.72158035,0.00041641,30]
[392233111,1761273046781,-500.0,0.00041641,30]
[392233112,1761273046792,-644.06,0.00041641,30]
[392233113,1761273046803,-504.91037266,0.00041641,30]
[392233114,1761273046814,-665.02,0.00041641,30]
[392233115,1761273046827,-501.12627855,0.00041641,30]
[392233116,1761273046838,-500.0,0.00041641,30]
[392233117,1761273046849,-500.0,0.00041641,30]
[392233118,1761273046858,-3792.24,0.00041641,30]
[392233119,1761273046869,-1050.03,0.00041641,30]
[392233120,1761273046880,-914.8,0.00041641,30]
[392233121,1761273046890,-500.0,0.00041641,30]
[392233122,1761273046901,-500.0,0.00041641,30]
[392233123,1761273046911,-500.0,0.00041641,30]
[392233124,1761273046921,-500.0,0.00041641,30]
[392233125,1761273046932,-500.0,0.00041641,30]
[392233126,1761273046945,-500.0,0.00041641,30]
[392233127,1761273046955,-500.0,0.00041641,30]
[392233128,1761273046964,-500.0,0.00041641,30]
[392233129,1761273046974,-804.77,0.00041641,30]
[392233130,1761273046983,-665.02,0.00041641,30]
[392233131,1761273046993,-500.0,0.00041641,30]
[392233132,1761273047003,-1051.92,0.00041641,30]
[392233133,1761273047013,-500.0,0.00041641,30]
[392233134,1761273047026,-500.0,0.00041641,30]
[392233135,1761273047036,-500.0,0.00041641,30]
[392233136,1761273047045,-500.0,0.00041641,30]
[392233137,1761273047055,-500.0,0.00041641,2]
[392233138,1761273047069,-911.39,0.00041641,30]
[392233139,1761273047079,-500.0,0.00041641,30]
[392233140,1761273047091,-500.0,0.00041641,30]
[392233141,1761273047106,-500.0,0.00041641,30]
[392233142,1761273047115,-500.0,0.00041641,30]
[392233143,1761273047124,-516.74,0.00041641,30]
[392233144,1761273047134,-500.0,0.00041641,30]
[392233145,1761273047143,-500.0,0.00041641,30]
[392233146,1761273047152,-500.0,0.00041641,120]
[392233147,1761273047162,-500.0,0.00041641,30]
[392233148,1761273047171,-500.0,0.00041641,30]
[392233149,1761273047182,-888.61,0.00041641,30]
[392233150,1761273047193,-500.0,0.00041641,30]
[392233151,1761273047204,-500.0,0.00041641,30]
[392233152,1761273047214,-552.8,0.00041641,30]
[392233153,1761273047223,-517.52,0.00041641,30]
[392233154,1761273047232,-500.0,0.00041641,30]
[392233155,1761273047243,-500.0,0.00041641,30]
[392233156,1761273047253,-500.0,0.00041641,30]
[392233157,1761273047264,-634.02,0.00041641,30]
[392233158,1761273047275,-722.53,0.00041641,30]
[392233159,1761273047287,-500.0,0.00041641,30]
[392233160,1761273047296,-1048.47,0.00041641,30]
[392233161,1761273047306,-411.07561991,0.00041641,30]
[392233162,1761273047315,-500.0,0.00041641,30]
[392233163,1761273047325,-500.0,0.00041641,30]
[392233164,1761273047334,-500.0,0.00041641,30]
[392233165,1761273047344,-500.0,0.00041641,30]
[392233166,1761273047354,-500.0,0.00041641,30]
[392233167,1761273047365,-967.56,0.00041641,30]
[392233168,1761273047375,-1000.0,0.00041641,30]
[392233169,1761273047384,-790.13,0.00041641,30]
[392233170,1761273047394,-500.0,0.00041641,30]
[392233171,1761273047404,-500.0,0.00041641,30]
[392233172,1761273047414,-966.64,0.00041641,30]
[392233173,1761273047425,-500.0,0.00041641,30]
[392233174,1761273047434,-500.0,0.00041641,30]
[392233175,1761273047443,-500.0,0.00041641,30]
[392233176,1761273047452,-1344.99,0.00041641,30]
[392233177,1761273047462,-660.98,0.00041641,30]
[392233178,1761273047471,-500.0,0.00041641,30]
[392233179,1761273047480,-500.0,0.00041641,30]
[392233180,1761273047490,-500.0,0.00041641,30]
[392233181,1761273047499,-500.0,0.00041641,30]
[392233182,1761273047508,-500.0,0.00041641,30]
[392233183,1761273047518,-1233.19,0.00041641,30]
[392233184,1761273047527,-500.95711835,0.00041641,30]
[392233185,1761273047538,-500.0,0.00041641,30]
[392233186,1761273047548,-500.0,0.00041641,30]
[392233187,1761273047558,-500.0,0.00041641,30]
[392233188,1761273047569,-151.0,0.00041641,120]
[392233189,1761273047580,-151.0,0.00041641,120]
[392233190,1761273047590,-666.42,0.00041641,30]
[392233191,1761273047601,-500.0,0.00041641,30]
[392233192,1761273047610,-500.0,0.00041641,30]
[392233193,1761273047620,-500.0,0.00041641,30]
[392233194,1761273047630,-500.0,0.00041641,30]
[392233195,1761273047640,-500.0,0.00041641,30]
[392233196,1761273047649,-500.0,0.00041641,30]
[392233197,1761273047659,-500.0,0.00041641,30]
[392233198,1761273047670,-500.0,0.00041641,30]
[392233199,1761273047680,-836.37,0.00041641,30]
[392233200,1761273047691,-500.0,0.00041641,30]
[392233201,1761273047702,-835.85,0.00041641,30]
[392233202,1761273047711,-448.46856768,0.00041641,30]
[392233203,1761273047722,-960.23,0.00041641,30]
[392233204,1761273047733,-500.0,0.00041641,30]
[392233205,1761273047743,-500.0,0.00041641,30]
[392233206,1761273047752,-618.84347334,0.00041641,30]
[392233207,1761273047763,-925.4,0.00041641,30]
[392233208,1761273047773,-876.43,0.00041641,30]
[392233209,1761273047783,-736.64,0.00041641,30]
[392233210,1761273047794,-500.0,0.00041641,30]
[392233211,1761273047806,-500.0,0.00041641,30]
[392233212,1761273047816,-500.0,0.00041641,30]
[392233213,1761273047826,-500.0,0.00041641,30]
[392233214,1761273047835,-774.47,0.00041641,30]
[392233215,1761273047844,-500.0,0.00041641,30]
[392233216,1761273047854,-500.0,0.00041641,30]
[392233217,1761273047863,-729.18,0.00041641,30]
[392233218,1761273047872,-765.68,0.00041641,30]
[392233219,1761273047881,-500.0,0.00041641,30]
[392233220,1761273047891,-500.0,0.00041641,30]
[392233221,1761273047902,-500.0,0.00041641,30]
[392233222,1761273047911,-609.14,0.00041641,30]
[392233223,1761273047921,-500.0,0.00041641,30]
[392233224,1761273047932,-500.0,0.00041641,30]
[392233225,1761273047942,-500.0,0.00041641,30]
[392233226,1761273047951,-500.0,0.00041641,30]
[392233227,1761273047962,-589.46,0.00041641,30]
[392233228,1761273047971,-532.29810787,0.00041641,30]
[392233229,1761273047981,-571.80442303,0.00041641,30]
[392233230,1761273047991,-696.39,0.00041641,30]
[392233231,1761273048000,-500.0,0.00041641,30]
[392233232,1761273048010,-981.28,0.00041641,30]
[392233233,1761273048020,-971.57,0.00041641,30]
[392233234,1761273048029,-500.0,0.00041642,30]
[392233235,1761273048039,-500.0,0.00041642,30]
[392233236,1761273048048,-500.0,0.00041642,30]
[392233237,1761273048057,-500.0,0.00041642,30]
[392233238,1761273048068,-500.0,0.00041642,30]
[392233239,1761273048077,-500.0,0.00041642,30]
[392233240,1761273048088,-500.0,0.00041642,30]
[392233241,1761273048097,-500.0,0.00041642,30]
[392233242,1761273048106,-578.06,0.00041642,30]
[392233243,1761273048117,-500.0,0.00041642,30]
[392233244,1761273048127,-500.0,0.00041642,30]
[392233245,1761273048137,-500.0,0.00041642,30]
[392233246,1761273048148,-935.95,0.00041642,30]
[392233247,1761273048157,-500.0,0.00041642,30]
[392233248,1761273048166,-892.21,0.00041642,30]
[392233249,1761273048176,-1032.06,0.00041642,30]
[392233250,1761273048186,-500.0,0.00041642,30]
[392233251,1761273048196,-500.0,0.00041642,30]
[392233252,1761273048206,-500.0,0.00041642,30]
[392233253,1761273048215,-500.0,0.00041642,30]
[392233254,1761273048225,-797.1,0.00041642,30]
[392233255,1761273048235,-500.0,0.00041642,30]
[392233256,1761273048245,-554.7,0.00041642,30]
[392233257,1761273048256,-600.07,0.00041642,30]
[392233258,1761273048266,-774.56,0.00041642,30]
[392233259,1761273048275,-500.0,0.00041642,30]
[392233260,1761273048286,-500.0,0.00041642,30]
[392233261,1761273048297,-500.0,0.00041642,30]
[392233262,1761273048307,-500.0,0.00041642,30]
[392233263,1761273048317,-500.0,0.00041642,30]
[392233264,1761273048328,-644.84,0.00041642,30]
[392233265,1761273048338,-529.52414829,0.00041642,30]
[392233266,1761273048348,-500.0,0.00041642,30]
[392233267,1761273048358,-500.0,0.00041642,30]
[392233268,1761273048370,-500.0,0.00041642,30]
[392233269,1761273048381,-1089.62,0.00041642,30]
[392233270,1761273048390,-500.0,0.00041642,30]
[392233271,1761273048401,-500.0,0.00041642,30]
[392233272,1761273048412,-500.0,0.00041642,30]
[392233273,1761273048422,-500.0,0.00041642,30]
[392233274,1761273048431,-500.0,0.00041642,30]
[392233275,1761273048441,-500.0,0.00041642,30]
[392233276,1761273048450,-521.48301617,0.00041642,30]
[392233277,1761273048459,-817.9,0.00041642,30]
[392233278,1761273048468,-500.0,0.00041642,30]
[392233279,1761273048479,-500.0,0.00041642,30]
[392233280,1761273048489,-500.0,0.00041642,30]
[392233281,1761273048498,-463.47453215,0.00041642,30]
[392233282,1761273048508,-500.0,0.00041642,30]
[392233283,1761273048518,-500.0,0.00041642,30]
[392233284,1761273048613,-500.0,0.00041642,30]
[392233285,1761273048624,-500.0,0.00041642,30]
[392233286,1761273048636,-500.0,0.00041642,30]
[392233287,1761273048647,-828.82,0.00041642,30]
[392233288,1761273048656,-500.0,0.00041642,30]
[392233289,1761273048665,-879.42,0.00041642,30]
[392233290,1761273048674,-500.0,0.00041642,30]
[392233291,1761273048683,-756.4,0.00041642,30]
[392233292,1761273048692,-500.0,0.00041642,30]
[392233293,1761273048703,-814.48,0.00041642,30]
[392233294,1761273048714,-510.91,0.00041642,30]
[392233295,1761273048723,-421.54375338,0.00041642,30]
[392233296,1761273048733,-672.69,0.00041642,30]
[392233297,1761273048743,-500.0,0.00041642,30]
[392233298,1761273048754,-500.0,0.00041642,30]
[392233299,1761273048765,-714.21,0.00041642,30]
[392233300,1761273048776,-500.0,0.00041642,30]
[392233301,1761273048786,-500.0,0.00041642,30]
[392233302,1761273048797,-500.0,0.00041642,30]
[392233303,1761273048806,-500.0,0.00041642,30]
[392233304,1761273048817,-500.0,0.00041642,30]
[392233305,1761273048830,-636.44,0.00041642,30]
[392233306,1761273048840,-776.6,0.00041642,30]
[392233307,1761273048849,-506.72,0.00041642,30]
[392233308,1761273048859,-1349.56,0.00041642,30]
[392233309,1761273048869,-797.14,0.00041642,30]
[392233310,1761273048879,-500.0,0.00041642,30]
[392233311,1761273048890,-665.37,0.00041642,30]
[392233312,1761273048901,-500.0,0.00041642,30]
[392233313,1761273048911,-500.0,0.00041642,30]
[392233314,1761273048920,-500.0,0.00041642,30]
[392233315,1761273048930,-500.0,0.00041642,30]
[392233316,1761273048939,-500.0,0.00041642,30]
[392233317,1761273048948,-656.5,0.00041642,30]
[392233318,1761273048958,-500.0,0.00041642,30]
[392233319,1761273048966,-500.0,0.00041642,30]
[392233320,1761273048975,-500.0,0.00041642,30]
[392233321,1761273048984,-652.89,0.00041642,30]
[392233322,1761273048994,-500.0,0.00041642,30]
[392233323,1761273049003,-689.22,0.00041642,30]
[392233324,1761273049013,-500.0,0.00041642,30]
[392233325,1761273049025,-500.0,0.00041642,30]
[392233326,1761273049035,-278.15286838,0.00041642,30]
[392233327,1761273049044,-500.0,0.00041642,30]
[392233328,1761273049052,-811.07,0.00041642,30]
[392233329,1761273049062,-500.0,0.00041642,30]
[392233330,1761273049072,-500.0,0.00041642,30]
[392233331,1761273049081,-500.0,0.00041642,30]
[392233332,1761273049090,-500.0,0.00041642,30]
[392233333,1761273049102,-500.0,0.00041642,30]
[392233334,1761273049111,-500.0,0.00041642,30]
[392233335,1761273049121,-500.0,0.00041642,30]
[392233336,1761273049130,-500.0,0.00041642,30]
[392233337,1761273049140,-959.77,0.00041642,30]
[392233338,1761273049150,-500.0,0.00041642,30]
[392233339,1761273049160,-500.0,0.00041642,30]
[392233340,1761273049169,-500.0,0.00041642,30]
[392233341,1761273049178,-789.0,0.00041642,30]
[392233342,1761273049187,-500.0,0.00041642,30]
[392233343,1761273049197,-629.04,0.00041642,30]
[392233344,1761273049206,-300.68769201,0.00041642,30]
[392233345,1761273049215,-1008.25,0.00041642,30]
[392233346,1761273049225,-500.0,0.00041642,30]
[392233347,1761273049234,-685.84,0.00041642,30]
[392233348,1761273049243,-500.0,0.00041642,30]
[392233349,1761273049252,-151.0,0.00041642,120]
[392233350,1761273049262,-178.373157,0.00041642,120]
[392233351,1761273049271,-808.42,0.00041642,30]
[392233352,1761273049280,-500.0,0.00041642,30]
[392233353,1761273049289,-500.0,0.00041642,30]
[392233354,1761273049299,-500.0,0.00041642,30]
[392233355,1761273049308,-505.69024566,0.00041642,30]
[392233356,1761273049317,-500.0,0.00041642,30]
[392233357,1761273049325,-500.0,0.00041642,30]
[392233358,1761273049335,-500.0,0.00041642,30]
[392233359,1761273049343,-500.0,0.00041643,30]
[392233360,1761273049352,-500.0,0.00041643,30]
[392233361,1761273049362,-500.0,0.00041643,30]
[392233362,1761273049371,-500.0,0.00041643,30]
[392233363,1761273049380,-500.0,0.00041643,30]
[392233364,1761273049388,-644.89033334,0.00041643,30]
[392233365,1761273049398,-502.03893264,0.00041643,30]
[392233366,1761273049407,-500.0,0.00041643,30]
[392233367,1761273049416,-500.0,0.00041643,30]
[392233368,1761273049426,-500.0,0.00041643,30]
[392233369,1761273049435,-500.0,0.00041643,30]
[392233370,1761273049443,-621.7,0.00041643,30]
[392233371,1761273049452,-500.0,0.00041643,30]
[392233372,1761273049461,-500.0,0.00041643,30]
[392233373,1761273049470,-500.0,0.00041643,30]
[392233374,1761273049479,-500.0,0.00041643,30]